bitfinex/quotes_SOLUSD_20250306
["timestamp","ask_amount","ask_price","bid_price","bid_amount"]
[1741274313027,0.13550673,149.8,149.79,313.54344421]
[1741274313234,0.13550673,149.8,149.79,312.14216157]
[1741274314036,6.81100673,149.8,149.79,312.0]
[1741274314241,0.13550673,149.8,149.79,312.0]
[1741274314441,0.13550673,149.8,149.79,312.14216157]
[1741274315081,6.81100673,149.8,149.73,49.32262011]
[1741274315266,6.81100673,149.8,149.72,20.05171009]
[1741274315426,6.81100673,149.8,149.72,1.40209354]
[1741274315627,6.81100673,149.8,149.68,6.6807]
[1741274315628,6.81100673,149.8,149.71,49.32262011]
[1741274315975,12.67200028,149.79,149.65,49.32262011]
[1741274316251,12.67200028,149.78,149.65,49.32262011]
[1741274316426,12.67200028,149.78,149.63,1.40277147]
[1741274316631,18.64964886,149.76,149.6,1.40280217]
[1741274316840,21.79200028,149.75,149.56,1.40313224]
[1741274317050,2.0,149.72,149.56,1.40313224]
[1741274317249,2.0,149.69,149.53,0.033]
[1741274317457,23.3847,149.67,149.53,0.033]
[1741274317750,56.7915,149.67,149.53,0.033]
[1741274317934,12.67200028,149.66,149.53,0.033]
[1741274318130,12.67200028,149.65,149.55,312.0]
[1741274319256,33.32164914,149.64,149.53,0.033]
[1741274319429,16.7089,149.62,149.53,0.033]
[1741274319629,20.64964886,149.6,149.53,0.033]
[1741274319827,20.64964886,149.6,149.4,49.32262011]
[1741274319828,20.64964886,149.58,149.4,49.32262011]
[1741274320031,20.64964886,149.56,149.38,0.033]
[1741274320452,20.64964886,149.56,149.38,50.76073128]
[1741274320629,18.64964886,149.56,149.38,1.43811117]
[1741274320831,18.64964886,149.56,149.38,50.76073128]
[1741274321047,18.64964886,149.56,149.39,49.32262011]
[1741274321245,18.64964886,149.56,149.38,1.43811117]
[1741274321555,2.0,149.53,149.38,0.033]
[1741274321726,9.08,149.52,149.38,49.35562011]
[1741274322141,9.08,149.52,149.41,312.0]
[1741274322572,9.92798156,149.45,149.42,0.14216157]
[1741274322746,9.92798156,149.45,149.38,49.32262011]
[1741274322933,9.92798156,149.45,149.39,49.32262011]
[1741274323258,9.92798156,149.46,149.42,0.14216157]
[1741274323956,9.92798156,149.46,149.41,49.32262011]
[1741274324167,9.08,149.52,149.43,49.32262011]
[1741274324336,6.6885,149.51,149.42,0.14216157]
[1741274324536,23.4097,149.51,149.42,0.14216157]
[1741274324737,6.6885,149.51,149.42,0.14216157]
[1741274324970,40.131,149.51,149.38,134.533]
[1741274325143,23.4097,149.51,149.38,0.033]
[1741274325342,9.1,149.5,149.43,0.14216157]
[1741274325740,46.10560028,149.55,149.47,0.14216157]
[1741274325741,6.6867,149.55,149.47,0.14216157]
[1741274325984,9.1,149.54,149.47,0.14216157]
[1741274326270,9.1,149.54,149.46,49.46478168]
[1741274326566,9.1,149.54,149.48,0.14216157]
[1741274327067,6.6864,149.56,149.5,0.14216157]
[1741274327261,9.08,149.57,149.52,49.32262011]
[1741274327477,16.7071,149.64,149.53,56.15208168]
[1741274327638,165.7653,149.59,149.53,0.14216157]
[1741274327966,165.7653,149.59,149.52,0.14216157]
[1741274328268,159.08,149.59,149.54,0.14216157]
[1741274328565,159.08,149.59,149.56,0.14216157]
[1741274328941,165.765,149.59,149.53,0.14216157]
[1741274329179,165.765,149.59,149.56,312.0]
[1741274330578,159.08,149.59,149.57,0.14216157]
[1741274330874,6.6827,149.64,149.57,49.46478168]
[1741274331070,6.6827,149.64,149.59,0.14216157]
[1741274331467,6.6827,149.64,149.52,49.46478168]
[1741274331648,36.06140028,149.64,149.54,0.14216157]
[1741274332346,36.06140028,149.64,149.53,0.14216157]
[1741274332577,69.47490028,149.64,149.53,0.14216157]
[1741274332878,69.47490028,149.64,149.54,0.14216157]
[1741274333077,18.64964886,149.62,149.47,49.32262011]
[1741274333245,12.67200028,149.61,149.47,49.32262011]
[1741274333445,18.64964886,149.59,149.5,312.0]
[1741274333771,21.73200028,149.58,149.5,312.0]
[1741274334279,18.64964886,149.57,149.41,18.64964886]
[1741274334579,12.67200028,149.56,149.41,135.90489493]
[1741274334780,159.24,149.55,149.42,49.32262011]
[1741274334968,159.24,149.55,149.43,0.14216157]
[1741274335168,159.24,149.55,149.42,50.72744591]
[1741274335473,36.07700028,149.54,149.41,49.32262011]
[1741274335676,12.67200028,149.53,149.4,49.32262011]
[1741274336065,12.67200028,149.53,149.38,153.18264886]
[1741274336066,12.67200028,149.53,149.42,49.32262011]
[1741274336382,12.67200028,149.53,149.43,49.32262011]
[1741274336683,12.67200028,149.53,149.44,0.14216157]
[1741274336858,12.67200028,149.52,149.41,49.32262011]
[1741274337185,21.67200028,149.51,149.42,49.46478168]
[1741274337357,21.67200028,149.51,149.42,0.14216157]
[1741274337559,49.00885003,149.48,149.41,49.00885003]
[1741274337764,12.67200028,149.49,149.41,1.40506364]
[1741274337954,12.67200028,149.49,149.42,0.14216157]
[1741274338154,49.00885003,149.49,149.44,0.14216157]
[1741274338384,23.4113,149.5,149.44,0.14216157]
[1741274338690,23.4113,149.5,149.46,312.0]
[1741274338985,49.00885003,149.48,149.46,312.0]
[1741274339186,49.00885003,149.47,149.46,312.0]
[1741274339571,55.69915003,149.47,149.46,312.0]
[1741274339781,6.6903,149.47,149.46,312.14216157]
[1741274339974,55.69915003,149.47,149.46,312.0]
[1741274340167,55.69915003,149.47,149.4,215.8]
[1741274340366,49.00885003,149.43,149.38,0.033]
[1741274340581,49.00885003,149.44,149.38,0.033]
[1741274340886,49.00885003,149.39,149.38,0.033]
[1741274341784,55.70265003,149.39,149.38,0.033]
[1741274342261,6.6938,149.39,149.38,0.033]
[1741274342657,55.70265003,149.39,149.38,0.033]
[1741274343396,12.67200028,149.38,149.25,81.333]
[1741274343697,6.6952,149.36,149.27,49.00885003]
[1741274343875,6.6929,149.41,149.29,19.07613357]
[1741274344194,159.28,149.43,149.31,0.42648471]
[1741274344195,165.9725,149.43,149.31,0.42648471]
[1741274344364,49.00885003,149.4,149.33,0.14216157]
[1741274344702,208.28885003,149.43,149.38,0.14216157]
[1741274344861,159.28,149.43,149.38,0.14216157]
[1741274345291,49.00885003,149.42,149.36,49.00885003]
[1741274345464,49.00885003,149.4,149.35,0.14216157]
[1741274345671,55.70225003,149.4,149.35,0.14216157]
[1741274345887,49.00885003,149.41,149.35,0.14216157]
[1741274346069,49.00885003,149.41,149.35,49.1510116]
[1741274346262,49.00885003,149.41,149.37,0.14216157]
[1741274346466,49.00885003,149.41,149.4,312.0]
[1741274347172,49.00885003,149.41,149.34,0.14216157]
[1741274347367,159.28,149.43,149.38,0.14216157]
[1741274347685,49.00885003,149.41,149.38,0.14216157]
[1741274347873,49.00885003,149.4,149.38,0.14216157]
[1741274348071,49.00885003,149.4,149.34,49.00885003]
[1741274348379,165.9721,149.43,149.36,49.00885003]
[1741274348578,159.28,149.43,149.39,0.14216157]
[1741274348780,165.9721,149.43,149.37,49.00885003]
[1741274348976,49.00885003,149.42,149.37,0.14216157]
[1741274349169,165.9721,149.43,149.37,0.14216157]
[1741274349490,159.28,149.43,149.39,0.14216157]
[1741274349789,215.01085003,149.43,149.39,0.14216157]
[1741274349986,159.31,149.43,149.42,312.14216157]
[1741274350390,12.70200028,149.58,149.42,312.14216157]
[1741274350591,49.00885003,149.51,149.45,49.1510116]
[1741274350799,49.00885003,149.48,149.45,0.14216157]
[1741274351007,49.00885003,149.46,149.41,0.14216157]
[1741274351207,49.00885003,149.42,149.38,0.033]
[1741274351500,49.00885003,149.43,149.38,0.033]
[1741274351666,55.70075003,149.44,149.38,0.033]
[1741274351874,49.00885003,149.41,149.38,0.033]
[1741274352097,49.00885003,149.42,149.38,0.033]
[1741274352396,6.6908,149.46,149.41,0.14216157]
[1741274352888,49.00885003,149.46,149.39,0.14216157]
[1741274353089,49.00885003,149.45,149.39,0.14216157]
[1741274353279,182.7945,149.48,149.39,49.1510116]
[1741274353479,49.00885003,149.46,149.44,312.0]
[1741274353874,159.38,149.48,149.45,0.14216157]
[1741274354088,49.00885003,149.52,149.46,49.00885003]
[1741274354293,159.36,149.56,149.49,49.1510116]
[1741274354490,208.36885003,149.56,149.49,0.14216157]
[1741274354787,182.7619,149.56,149.47,49.1510116]
[1741274354991,49.00885003,149.53,149.47,49.1510116]
[1741274355377,49.00885003,149.53,149.47,0.14216157]
[1741274355572,49.00885003,149.55,149.49,0.14216157]
[1741274355786,166.0463,149.56,149.51,49.1510116]
[1741274355787,159.36,149.56,149.51,49.1510116]
[1741274355966,0.03,149.58,149.53,49.00885003]
[1741274356299,49.00885003,149.55,149.48,49.00885003]
[1741274356485,49.00885003,149.54,149.49,0.14216157]
[1741274356673,49.00885003,149.51,149.43,134.5]
[1741274356876,49.00885003,149.51,149.46,0.14216157]
[1741274357074,49.00885003,149.53,149.5,312.14216157]
[1741274357590,49.00885003,149.51,149.5,312.0]
[1741274357787,55.69735003,149.51,149.5,312.0]
[1741274357993,6.6885,149.51,149.5,312.0]
[1741274358167,55.69735003,149.51,149.5,312.0]
[1741274358990,55.69735003,149.51,149.42,49.00885003]
[1741274359192,6.6885,149.51,149.41,134.5]
[1741274359491,49.00885003,149.49,149.42,49.00885003]
[1741274359786,6.6885,149.51,149.41,183.50885003]
[1741274359787,49.00885003,149.47,149.41,183.50885003]
[1741274359993,6.6899,149.48,149.41,49.00885003]
[1741274360197,6.6885,149.51,149.42,0.14216157]
[1741274360695,6.6885,149.51,149.41,1.40506859]
[1741274360696,6.6885,149.51,149.38,81.333]
[1741274360892,49.00885003,149.45,149.39,0.14216157]
[1741274361087,8.76,149.47,149.38,130.34185003]
[1741274361285,8.76,149.47,149.39,49.00885003]
[1741274361485,49.00885003,149.46,149.4,49.1510116]
[1741274361688,49.00885003,149.45,149.4,0.14216157]
[1741274361905,49.00885003,149.45,149.38,130.34185003]
[1741274362074,49.00885003,149.44,149.41,0.033]
[1741274362271,49.00885003,149.43,149.41,0.033]
[1741274362609,49.00885003,149.42,149.41,0.033]
[1741274363103,49.00885003,149.42,149.33,49.00885003]
[1741274363319,49.00885003,149.45,149.35,0.14216157]
[1741274363471,49.00885003,149.4,149.34,49.00885003]
[1741274363671,49.00885003,149.45,149.34,49.00885003]
[1741274363878,49.00885003,149.41,149.34,49.00885003]
[1741274364079,49.00885003,149.41,149.35,0.14216157]
[1741274364282,49.00885003,149.43,149.37,0.14216157]
[1741274365092,49.00885003,149.44,149.4,0.14216157]
[1741274365297,49.00885003,149.45,149.4,0.14216157]
[1741274365604,49.00885003,149.45,149.39,0.14216157]
[1741274365787,49.00885003,149.44,149.39,0.14216157]
[1741274365993,57.66885003,149.45,149.39,0.14216157]
[1741274366189,8.66,149.45,149.41,0.14216157]
[1741274366410,57.66885003,149.45,149.41,0.14216157]
[1741274366590,49.00885003,149.44,149.41,0.14216157]
[1741274366784,57.66885003,149.45,149.39,6.83586157]
[1741274366987,57.66885003,149.45,149.39,0.14216157]
[1741274367199,57.66885003,149.45,149.36,134.5]
[1741274367200,8.66,149.45,149.36,134.5]
[1741274367406,49.00885003,149.41,149.34,137.00485003]
[1741274367625,49.00885003,149.4,149.34,6.696]
[1741274367923,49.00885003,149.4,149.33,55.70525003]
[1741274368288,55.70175003,149.42,149.35,49.00885003]
[1741274368505,6.6929,149.42,149.39,312.0]
[1741274368985,55.70175003,149.42,149.39,312.0]
[1741274369525,49.00885003,149.41,149.35,49.00885003]
[1741274369687,49.00885003,149.4,149.34,49.00885003]
[1741274369885,49.00885003,149.4,149.35,0.14216157]
[1741274370086,6.6938,149.39,149.34,49.00885003]
[1741274370319,159.34,149.43,149.37,49.00885003]
[1741274370493,159.34,149.43,149.4,0.14216157]
[1741274370886,166.0322,149.43,149.4,0.14216157]
[1741274371117,159.34,149.43,149.39,49.1510116]
[1741274371924,159.34,149.43,149.38,0.14216157]
[1741274372308,159.34,149.43,149.38,49.1510116]
[1741274372504,159.34,149.43,149.42,312.0]
[1741274373030,49.00885003,149.43,149.32,134.54]
[1741274373201,72.42805003,149.45,149.32,134.54]
[1741274373202,49.00885003,149.4,149.33,49.00885003]
[1741274373399,49.00885003,149.4,149.32,0.04]
[1741274373600,49.00885003,149.4,149.34,0.14216157]
[1741274373803,49.00885003,149.38,149.32,0.04]
[1741274374002,6.6947,149.37,149.32,0.04]
[1741274374720,6.6947,149.37,149.32,49.1910116]
[1741274374920,49.00885003,149.33,149.32,0.04]
[1741274375337,167.92,149.36,149.32,0.04]
[1741274375509,49.00885003,149.33,149.32,0.04]
[1741274375913,55.70535003,149.33,149.32,0.04]
[1741274377220,49.00885003,149.34,149.32,0.04]
[1741274377622,49.00885003,149.33,149.32,0.04]
[1741274378139,6.6965,149.33,149.32,0.04]
[1741274378439,55.70535003,149.33,149.32,0.04]
[1741274379139,72.44675003,149.33,149.27,0.033]
[1741274379446,49.00885003,149.29,149.27,0.033]
[1741274379808,23.4379,149.33,149.27,0.033]
[1741274380155,49.00885003,149.29,149.27,0.033]
[1741274380311,57.50885003,149.28,149.27,0.033]
[1741274381246,57.50885003,149.28,149.27,0.0001]
[1741274381722,57.50885003,149.28,149.23,0.033]
[1741274381929,8.5,149.28,149.23,0.033]
[1741274382109,49.00885003,149.24,149.23,0.033]
[1741274382316,257.45770006,149.24,149.17,0.033]
[1741274382670,49.00885003,149.2,149.17,0.033]
[1741274382833,49.00885003,149.19,149.17,0.033]
[1741274384148,8.5,149.22,149.17,49.04185003]
[1741274384332,8.5,149.22,149.18,49.1510116]
[1741274384532,8.5,149.22,149.17,49.04185003]
[1741274384838,8.5,149.22,149.19,312.0]
[1741274385056,64.21055003,149.22,149.19,312.0]
[1741274385245,49.00885003,149.21,149.19,312.0]
[1741274385439,49.00885003,149.25,149.18,49.1510116]
[1741274385629,49.00885003,149.25,149.19,0.14216157]
[1741274385825,49.00885003,149.24,149.19,0.14216157]
[1741274386031,49.00885003,149.24,149.18,0.14216157]
[1741274386236,6.6997,149.26,149.18,0.14216157]
[1741274386450,49.00885003,149.24,149.18,0.14216157]
[1741274386655,49.00885003,149.22,149.17,0.033]
[1741274386852,12.67200028,149.24,149.17,0.17516157]
[1741274387154,49.00885003,149.23,149.17,0.17516157]
[1741274387459,12.67200028,149.24,149.2,0.14216157]
[1741274387663,55.70855003,149.26,149.2,0.14216157]
[1741274387865,12.67200028,149.27,149.22,49.1510116]
[1741274388167,159.52,149.3,149.24,0.14216157]
[1741274388370,159.52,149.3,149.25,49.00885003]
[1741274388543,159.52,149.3,149.26,312.0]
[1741274388856,49.00885003,149.28,149.26,312.0]
[1741274389150,49.00885003,149.27,149.18,0.033]
[1741274389328,49.00885003,149.28,149.23,0.14216157]
[1741274389537,49.00885003,149.27,149.21,49.00885003]
[1741274389732,49.00885003,149.27,149.2,49.1510116]
[1741274390039,49.00885003,149.29,149.22,49.1510116]
[1741274390261,55.70745003,149.29,149.23,49.00885003]
[1741274390434,55.70745003,149.29,149.19,0.14216157]
[1741274390746,6.6986,149.29,149.21,0.14216157]
[1741274390939,55.70745003,149.29,149.23,0.14216157]
[1741274391142,55.70745003,149.29,149.21,49.00885003]
[1741274391143,49.00885003,149.27,149.21,49.00885003]
[1741274391342,49.00885003,149.27,149.19,6.7027]
[1741274391343,55.70745003,149.29,149.23,0.14216157]
[1741274391571,172.19200028,149.3,149.25,0.14216157]
[1741274391728,178.88990028,149.3,149.22,49.00885003]
[1741274392063,49.00885003,149.25,149.24,312.0]
[1741274392265,6.7006,149.24,149.2,49.00885003]
[1741274392464,6.6984,149.29,149.19,0.14216157]
[1741274392644,6.6984,149.29,149.26,49.00885003]
[1741274392836,6.6984,149.29,149.25,49.00885003]
[1741274393528,6.697,149.32,149.27,49.1510116]
[1741274393734,6.697,149.32,149.28,49.00885003]
[1741274393946,0.04000007,149.28,149.27,49.00885003]
[1741274394566,0.04000007,149.28,149.26,49.00885003]
[1741274394748,0.04000007,149.28,149.25,49.00885003]
[1741274394943,0.04000007,149.28,149.26,49.00885003]
[1741274395161,0.04000007,149.28,149.27,361.1510116]
[1741274396261,0.04000007,149.28,149.27,312.0]
[1741274396469,0.04000007,149.28,149.21,8.32]
[1741274396470,0.04000007,149.28,149.25,49.00885003]
[1741274396770,0.04000007,149.28,149.24,30.23177866]
[1741274396965,0.04000007,149.28,149.26,30.23177866]
[1741274397171,0.04000007,149.28,149.27,30.23177866]
[1741274398250,0.04000007,149.28,149.27,30.37394023]
[1741274398745,0.04000007,149.28,149.27,30.23177866]
[1741274399348,0.04000007,149.28,149.27,342.37394023]
[1741274399862,0.04000007,149.28,149.27,30.37394023]
[1741274400067,159.52,149.34,149.28,0.14216157]
[1741274400269,46.96627866,149.4,149.33,30.23177866]
[1741274400270,6.6938,149.39,149.33,30.23177866]
[1741274400476,31.6679,149.4,149.32,0.14216157]
[1741274400654,30.23177866,149.36,149.24,246.03177866]
[1741274400846,65.19619379,149.4,149.26,0.28432314]
[1741274401042,30.23177866,149.39,149.28,0.14216157]
[1741274401289,30.23177866,149.37,149.28,0.14216157]
[1741274401589,31.32164914,149.39,149.29,30.23177866]
[1741274401760,30.23177866,149.37,149.27,0.14216157]
[1741274402082,30.23177866,149.38,149.31,30.23177866]
[1741274402383,8.24,149.38,149.33,30.23177866]
[1741274402549,61.90187866,149.38,149.32,30.23177866]
[1741274402879,31.6701,149.38,149.33,30.23177866]
[1741274403083,6.6929,149.41,149.37,30.23177866]
[1741274403389,159.52,149.42,149.4,30.23177866]
[1741274403544,0.03,149.43,149.41,30.23177866]
[1741274403749,0.03,149.43,149.42,30.23177866]
[1741274403976,0.03,149.43,149.42,30.37394023]
[1741274404180,0.03,149.43,149.42,246.17394023]
[1741274404383,0.03,149.43,149.42,252.86644023]
[1741274404557,0.03,149.43,149.38,246.03177866]
[1741274404756,0.03,149.43,149.42,30.23177866]
[1741274404960,0.03,149.43,149.41,30.23177866]
[1741274405164,0.03,149.43,149.39,30.23177866]
[1741274405675,0.03,149.43,149.35,0.14216157]
[1741274405879,0.03,149.43,149.37,30.23177866]
[1741274406075,0.03,149.43,149.36,30.23177866]
[1741274406076,30.23177866,149.42,149.36,30.23177866]
[1741274406284,30.23177866,149.42,149.35,30.23177866]
[1741274406490,0.03,149.43,149.35,342.23177866]
[1741274406491,36.92467866,149.41,149.35,342.23177866]
[1741274406654,30.23177866,149.38,149.28,134.5]
[1741274406854,30.23177866,149.38,149.25,98.0503]
[1741274406855,8.3,149.38,149.33,30.23177866]
[1741274407151,8.3,149.38,149.32,30.23177866]
[1741274407378,38.53177866,149.38,149.32,30.23177866]
[1741274407589,197.99177866,149.38,149.32,30.23177866]
[1741274407767,30.23177866,149.36,149.3,30.23177866]
[1741274407962,167.76,149.38,149.29,30.23177866]
[1741274408181,167.76,149.38,149.24,30.23177866]
[1741274408377,30.23177866,149.33,149.2,6.7024]
[1741274408579,14.977,149.32,149.26,30.23177866]
[1741274408891,45.20877866,149.32,149.26,30.23177866]
[1741274409107,30.23177866,149.31,149.2,6.7024]
[1741274409398,30.23177866,149.28,149.18,6.7358]
[1741274409565,30.23177866,149.28,149.21,342.23177866]
[1741274409768,30.23177866,149.26,149.21,312.0]
[1741274409997,8.32,149.3,149.25,30.23177866]
[1741274410160,6.697,149.32,149.27,30.23177866]
[1741274410362,6.6967,149.33,149.27,30.23177866]
[1741274410892,30.23177866,149.32,149.25,30.23177866]
[1741274411099,30.23177866,149.33,149.27,30.23177866]
[1741274411606,36.92747866,149.35,149.28,30.23177866]
[1741274411780,15.0551,149.37,149.31,30.23177866]
[1741274412101,30.23177866,149.35,149.29,30.23177866]
[1741274412279,6.6951,149.37,149.3,30.23177866]
[1741274412475,6.6944,149.38,149.33,30.23177866]
[1741274412793,30.23177866,149.36,149.3,30.23177866]
[1741274413106,0.03,149.39,149.34,30.37394023]
[1741274413403,0.03,149.39,149.34,0.14216157]
[1741274413589,0.03,149.39,149.38,30.23177866]
[1741274413789,0.03,149.39,149.38,30.37394023]
[1741274413966,0.03,149.43,149.39,18.79181043]
[1741274414179,0.03,149.43,149.41,0.14216157]
[1741274414501,0.03,149.43,149.39,135.90486559]
[1741274414502,0.03,149.43,149.42,30.37394023]
[1741274414798,0.03,149.43,149.42,30.23177866]
[1741274415096,0.03,149.43,149.41,0.14216157]
[1741274415302,0.03,149.43,149.42,30.37394023]
[1741274415593,0.03,149.43,149.42,0.14216157]
[1741274415797,0.03,149.43,149.42,30.23177866]
[1741274416000,0.03,149.43,149.36,134.5]
[1741274416297,0.03,149.43,149.39,30.23177866]
[1741274416499,0.03,149.43,149.31,164.73177866]
[1741274416666,0.03,149.43,149.27,0.033]
[1741274416667,49.05423496,149.39,149.27,0.033]
[1741274416868,8.35,149.43,149.38,49.05423496]
[1741274417397,49.05423496,149.41,149.31,49.05423496]
[1741274417591,49.05423496,149.41,149.35,49.05423496]
[1741274417786,57.40423496,149.43,149.31,49.05423496]
[1741274417996,57.40423496,149.43,149.37,49.05423496]
[1741274418193,57.40423496,149.43,149.36,49.05423496]
[1741274418491,6.6925,149.42,149.36,49.05423496]
[1741274418687,6.6925,149.42,149.31,55.75123496]
[1741274418688,6.6925,149.42,149.37,49.05423496]
[1741274418910,0.03,149.43,149.41,49.05423496]
[1741274419073,0.03,149.43,149.42,49.19639653]
[1741274419278,2.0,149.61,149.42,49.19639653]
[1741274419279,19.35830028,149.56,149.42,185.10128869]
[1741274419469,19.35830028,149.56,149.49,312.0]
[1741274419674,6.6867,149.56,149.51,49.05423496]
[1741274419885,8.31,149.58,149.49,312.0]
[1741274420166,49.05423496,149.55,149.49,312.0]
[1741274420364,49.05423496,149.55,149.49,49.05423496]
[1741274420572,19.38930028,149.54,149.42,0.14216157]
[1741274420793,49.05423496,149.53,149.42,0.14216157]
[1741274421097,8.26,149.52,149.42,0.14216157]
[1741274421310,49.05423496,149.51,149.44,49.05423496]
[1741274421602,49.05423496,149.5,149.44,49.05423496]
[1741274421797,8.26,149.52,149.44,49.05423496]
[1741274421969,49.05423496,149.51,149.44,49.05423496]
[1741274422285,61.72623524,149.53,149.42,0.14216157]
[1741274422481,6.688,149.52,149.48,49.05423496]
[1741274422688,6.688,149.52,149.42,6.83456157]
[1741274422991,6.688,149.52,149.48,49.05423496]
[1741274423371,19.35960028,149.53,149.49,49.05423496]
[1741274423900,0.03,149.54,149.5,49.05423496]
[1741274424080,6.7171,149.54,149.5,49.05423496]
[1741274424275,6.7171,149.54,149.49,49.05423496]
[1741274424473,6.7171,149.54,149.39,169.88384886]
[1741274424474,49.05423496,149.51,149.39,134.5]
[1741274424783,49.05423496,149.49,149.43,49.05423496]
[1741274425101,12.67200028,149.5,149.44,49.05423496]
[1741274425284,12.67200028,149.5,149.45,49.05423496]
[1741274425486,61.72623524,149.5,149.44,49.05423496]
[1741274425680,12.67200028,149.5,149.46,49.05423496]
[1741274426094,6.688,149.52,149.49,49.05423496]
[1741274426267,14.928,149.52,149.49,49.05423496]
[1741274426471,14.928,149.52,149.45,49.05423496]
[1741274426472,6.7172,149.54,149.51,49.05423496]
[1741274426788,0.03,149.54,149.46,0.14216157]
[1741274426990,0.03,149.54,149.5,49.05423496]
[1741274427306,49.08423496,149.54,149.39,81.3]
[1741274427473,0.03,149.54,149.48,49.05423496]
[1741274427669,0.03,149.54,149.49,49.05423496]
[1741274427989,0.03,149.54,149.45,49.05423496]
[1741274427990,0.03,149.54,149.5,49.05423496]
[1741274428306,57.32423496,149.54,149.48,49.05423496]
[1741274428505,0.03,149.54,149.53,49.05423496]
[1741274428993,0.03,149.54,149.46,0.14216157]
[1741274429398,49.08423496,149.54,149.47,49.05423496]
[1741274429579,12.70200028,149.54,149.47,49.05423496]
[1741274429773,12.67200028,149.53,149.4,0.14216157]
[1741274430096,49.05423496,149.48,149.38,0.033]
[1741274430297,69.96623524,149.47,149.41,49.05423496]
[1741274430702,6.6907,149.46,149.43,49.05423496]
[1741274431096,6.6907,149.46,149.38,361.08723496]
[1741274431408,6.6907,149.46,149.42,49.05423496]
[1741274432084,27.60230028,149.47,149.43,49.05423496]
[1741274432479,27.60230028,149.47,149.39,0.14216157]
[1741274432695,159.36,149.48,149.44,49.05423496]
[1741274432897,159.36,149.48,149.46,49.05423496]
[1741274433098,166.0498,149.48,149.46,49.05423496]
[1741274433609,166.0498,149.48,149.44,49.05423496]
[1741274433775,166.0498,149.48,149.38,49.08723496]
[1741274433976,178.72180028,149.48,149.42,49.05423496]
[1741274434203,166.0499,149.48,149.39,0.14216157]
[1741274434404,166.0499,149.48,149.38,55.78153496]
[1741274434610,166.0499,149.48,149.45,49.05423496]
[1741274434903,166.0499,149.48,149.39,0.14216157]
[1741274435240,231.82873496,149.48,149.39,312.0]
[1741274435388,159.36,149.48,149.45,49.05423496]
[1741274435777,166.0499,149.48,149.45,49.05423496]
[1741274436079,166.0499,149.48,149.39,0.14216157]
[1741274436408,182.7745,149.48,149.43,49.05423496]
[1741274436586,8.24,149.47,149.42,49.05423496]
[1741274436786,72.47173496,149.46,149.39,49.05423496]
[1741274436999,49.05423496,149.45,149.38,49.08723496]
[1741274437182,68.41693524,149.46,149.4,49.05423496]
[1741274437376,19.36270028,149.46,149.42,49.05423496]
[1741274437577,68.41693524,149.46,149.39,49.05423496]
[1741274437779,85.14373524,149.46,149.41,0.033]
[1741274438189,36.08950028,149.46,149.41,0.033]
[1741274438579,66.26243021,149.46,149.41,0.033]
[1741274438779,12.67200028,149.46,149.42,30.17292993]
[1741274439003,0.03,149.48,149.45,30.17292993]
[1741274439185,0.03,149.48,149.47,30.17292993]
[1741274439599,0.03,149.48,149.47,30.3150915]
[1741274439822,0.03,149.54,149.48,0.14216157]
[1741274440323,0.03,149.54,149.53,30.17292993]
[1741274440692,0.03,149.54,149.46,1.40438544]
[1741274440693,0.03,149.54,149.47,0.14216157]
[1741274440890,0.03,149.54,149.52,48.92936852]
[1741274441199,0.03,149.54,149.51,48.92936852]
[1741274441723,0.03,149.54,149.53,48.92936852]
[1741274442084,0.03,149.54,149.53,360.92936852]
[1741274442588,0.03,149.54,149.52,48.92936852]
[1741274442793,12.70200028,149.54,149.5,48.92936852]
[1741274443197,20.94200028,149.54,149.49,48.92936852]
[1741274443703,159.32,149.53,149.48,48.92936852]
[1741274444095,197.34300341,149.53,149.47,48.92936852]
[1741274444305,48.92936852,149.51,149.44,48.92936852]
[1741274444519,48.92936852,149.51,149.41,0.033]
[1741274444520,48.92936852,149.47,149.41,0.033]
[1741274444820,48.92936852,149.47,149.41,48.96236852]
[1741274444821,6.6912,149.45,149.41,48.96236852]
[1741274444988,72.34856852,149.45,149.41,0.033]
[1741274445188,23.4192,149.45,149.41,0.033]
[1741274445598,72.34856852,149.45,149.41,0.033]
[1741274446095,36.09120028,149.45,149.41,0.033]
[1741274446301,85.0205688,149.45,149.41,0.033]